bitfinex-derivatives/quotes_SOLF0:USTF0_20250309
["timestamp","ask_amount","ask_price","bid_price","bid_amount"]
[1741553581467,7.779,128.56,128.55,3.316e-05]
[1741553583871,7.7786,128.57,128.55,3.316e-05]
[1741553584166,0.04954975,128.58,128.55,3.316e-05]
[1741553584756,7.779,128.56,128.55,3.316e-05]
[1741553587364,28.6526275,128.56,128.55,3.316e-05]
[1741553587667,7.779,128.56,128.55,3.316e-05]
[1741553589368,0.04954975,128.58,128.55,3.316e-05]
[1741553589769,20.92317725,128.58,128.55,3.316e-05]
[1741553590167,7.779,128.56,128.55,3.316e-05]
[1741553591273,28.6526275,128.56,128.55,3.316e-05]
[1741553591476,20.8736275,128.56,128.46,308.2936275]
[1741553591669,20.8736275,128.53,128.46,268.5293]
[1741553591874,51.8736275,128.53,128.46,268.5293]
[1741553592570,7.784,128.48,128.46,268.5293]
[1741553592775,7.784,128.48,128.46,268.58283545]
[1741553593079,0.04948907,128.48,128.46,268.58283545]
[1741553593275,31.0,128.53,128.46,289.45646295]
[1741553593577,20.8736275,128.56,128.47,31.0]
[1741553593770,51.8736275,128.56,128.48,20.8736275]
[1741553593966,31.0,128.56,128.48,20.8736275]
[1741553594376,0.05275242,128.53,128.51,0.05259947]
[1741553594874,7.83395242,128.53,128.51,0.05259947]
[1741553595078,0.05275242,128.53,128.51,0.05259947]
[1741553596470,7.7815,128.52,128.51,0.05259947]
[1741553599681,0.05275242,128.53,128.51,0.05259947]
[1741553599871,31.0,128.57,128.51,0.05259947]
[1741553600572,20.8736275,128.61,128.51,0.05259947]
[1741553600773,7.7776,128.59,128.53,7.7805]
[1741553601084,20.8736275,128.59,128.55,0.04946853]
[1741553601277,7.779,128.56,128.55,0.04946853]
[1741553601685,20.8736275,128.59,128.55,0.04946853]
[1741553602682,31.02,128.6,128.55,0.04946853]
[1741553602884,7.7776,128.59,128.55,0.04946853]
[1741553603180,31.02,128.6,128.55,0.04946853]
[1741553603579,7.7788,128.57,128.55,0.04946853]
[1741553604874,7.7781,128.58,128.55,0.04946853]
[1741553605585,7.7775,128.59,128.55,7.82906853]
[1741553605784,31.0,128.6,128.55,0.04946853]
[1741553606187,7.7784,128.58,128.55,0.04946853]
[1741553607088,7.7773,128.59,128.55,0.04946853]
[1741553607380,20.8736275,128.63,128.56,7.7787]
[1741553607591,7.7764,128.61,128.56,15.9554]
[1741553607781,7.7764,128.61,128.58,0.05857982]
[1741553608181,7.7756,128.62,128.58,0.05857982]
[1741553608787,7.7761,128.61,128.58,0.05857982]
[1741553609184,31.0,128.63,128.58,0.05857982]
[1741553609487,7.7758,128.62,128.58,0.05857982]
[1741553609683,51.8736275,128.63,128.58,0.05857982]
[1741553609891,20.8736275,128.61,128.58,0.05857982]
[1741553610085,7.7772,128.59,128.58,0.05857982]
[1741553613088,20.8736275,128.61,128.58,0.05857982]
[1741553613294,51.8736275,128.63,128.58,0.05857982]
[1741553613794,7.777,128.6,128.58,0.05857982]
[1741553614890,51.8736275,128.63,128.58,0.05857982]
[1741553615096,31.0,128.63,128.58,0.05857982]
[1741553615493,7.7761,128.61,128.58,0.05857982]
[1741553615989,31.0,128.63,128.58,0.05857982]
[1741553615990,7.7768,128.6,128.58,0.05857982]
[1741553616896,7.7763,128.61,128.58,0.05857982]
[1741553617090,31.0,128.63,128.58,0.05857982]
[1741553617995,7.7763,128.61,128.58,0.05857982]
[1741553618195,30.98,128.63,128.58,0.05857982]
[1741553621597,7.7758,128.62,128.58,0.05857982]
[1741553621998,30.98,128.63,128.58,0.05857982]
[1741553623301,7.7764,128.61,128.58,0.05857982]
[1741553627202,7.7757,128.62,128.58,7.83637982]
[1741553628704,51.8536275,128.65,128.58,0.05857982]
[1741553628905,7.776,128.61,128.58,0.05857982]
[1741553629098,51.8536275,128.65,128.58,0.05857982]
[1741553629500,7.7758,128.62,128.58,7.83637982]
[1741553630494,7.7749,128.63,128.59,7.7769]
[1741553630702,7.7749,128.63,128.57,4.1147]
[1741553630903,7.7755,128.62,128.6,0.05686097]
[1741553631105,14.19131524,128.64,128.6,0.05686097]
[1741553631901,7.7759,128.62,128.6,0.05686097]
[1741553633208,14.19131524,128.64,128.6,0.05686097]
[1741553634315,21.96581524,128.64,128.6,7.83316097]
[1741553634510,14.19131524,128.64,128.6,0.05686097]
[1741553634810,14.19131524,128.66,128.61,14.19131524]
[1741553635309,14.19131524,128.66,128.62,0.05350323]
[1741553636804,14.19131524,128.68,128.63,14.19131524]
[1741553637003,45.15131524,128.69,128.63,14.19131524]
[1741553637204,7.7729,128.67,128.64,0.05971613]
[1741553637809,7.7734,128.66,128.64,0.05971613]
[1741553638202,45.15131524,128.69,128.64,0.05971613]
[1741553638913,7.7734,128.66,128.64,0.05971613]
[1741553639807,21.96491524,128.65,128.64,0.05971613]
[1741553640017,14.19131524,128.65,128.58,14.19131524]
[1741553640215,14.19131524,128.63,128.58,14.19131524]
[1741553640820,14.19131524,128.63,128.57,4.1147]
[1741553641316,0.05294386,128.61,128.59,0.05462942]
[1741553641508,14.2442591,128.61,128.59,0.05462942]
[1741553642214,14.24986855,128.61,128.59,0.05462942]
[1741553642619,22.02626855,128.61,128.59,0.05462942]
[1741553642820,7.82934386,128.61,128.59,0.05462942]
[1741553643113,20.95386739,128.61,128.59,0.05462942]
[1741553643312,7.7766,128.6,128.59,0.05462942]
[1741553648520,0.05294386,128.61,128.59,0.05462942]
[1741553648918,7.82904386,128.61,128.59,0.05462942]
[1741553650417,7.7766,128.6,128.59,0.05462942]
[1741553653523,30.94,128.6,128.53,260.8772]
[1741553653823,20.90092353,128.59,128.53,260.8772]
[1741553654416,7.7789,128.57,128.53,260.8772]
[1741553654629,7.83561761,128.57,128.55,0.05565751]
[1741553657628,0.05671761,128.57,128.55,0.05565751]
[1741553660432,0.05671761,128.57,128.55,7.83525751]
[1741553661633,20.90092353,128.63,128.55,30.99565751]
[1741553661839,20.90092353,128.63,128.56,4.1003]
[1741553662338,7.7765,128.61,128.57,7.778]
[1741553662727,0.05306771,128.6,128.58,0.05491593]
[1741553663433,0.05306771,128.6,128.58,7.83261593]
[1741553663633,0.05306771,128.6,128.58,0.05491593]
[1741553665125,7.82976771,128.6,128.58,0.05491593]
[1741553665324,0.05306771,128.6,128.58,0.05491593]
[1741553665736,7.7772,128.59,128.58,0.05491593]
[1741553666534,7.82996771,128.6,128.58,0.05491593]
[1741553666836,0.05306771,128.6,128.58,0.05491593]
[1741553667232,7.7772,128.59,128.58,0.05491593]
[1741553670142,28.6785434,128.59,128.58,0.05491593]
[1741553673637,7.7772,128.59,128.58,0.05491593]
[1741553674235,7.7772,128.59,128.58,1.593e-05]
[1741553681538,0.05306771,128.6,128.58,1.593e-05]
[1741553683643,7.7772,128.59,128.58,1.593e-05]
[1741553685047,7.82996771,128.6,128.58,1.593e-05]
[1741553693057,0.05306771,128.6,128.58,1.593e-05]
[1741553694558,7.82996771,128.6,128.58,1.593e-05]
[1741553697159,0.05306771,128.6,128.58,1.593e-05]
[1741553697869,0.05306771,128.6,128.58,7.77781593]
[1741553698362,2.2764,128.68,128.58,14.19739381]
[1741553698562,14.19737788,128.66,128.61,14.19737788]
[1741553698964,14.19737788,128.66,128.61,21.97297788]
[1741553699160,14.19737788,128.66,128.61,14.19737788]
[1741553699368,14.19737788,128.66,128.59,14.19737788]
[1741553699565,7.7751,128.63,128.62,0.05189659]
[1741553700873,7.7771,128.6,128.57,4.1787]
[1741553701066,14.19737788,128.6,128.57,11.9568]
[1741553701262,14.19737788,128.6,128.57,4.1787]
[1741553701766,14.19737788,128.62,128.57,4.1787]
[1741553701969,0.05466276,128.61,128.59,0.05244006]
[1741553702771,0.05466276,128.61,128.59,7.82934006]
[1741553702972,0.05466276,128.61,128.59,0.05244006]
[1741553704275,0.05466276,128.61,128.59,7.82964006]
[1741553705574,0.05466276,128.61,128.59,0.05244006]
[1741553706273,21.97397788,128.6,128.59,0.05244006]
[1741553706475,14.19737788,128.6,128.52,4.0008]
[1741553706663,14.19737788,128.54,128.5,256.56]
[1741553707063,14.19737788,128.56,128.5,256.56]
[1741553707573,21.97677788,128.56,128.52,7.7814]
[1741553707779,0.05776123,128.54,128.52,7.83091251]
[1741553708171,0.05776123,128.54,128.53,7.7809]
[1741553708477,45.07737788,128.59,128.53,14.19737788]
[1741553708772,45.07737788,128.59,128.53,18.14777788]
[1741553708968,14.19737788,128.55,128.5,301.63737788]
[1741553709367,7.7804,128.54,128.5,270.75737788]
[1741553709572,7.83112933,128.54,128.51,0.05129556]
[1741553710373,7.7815,128.52,128.51,0.05129556]
[1741553710679,14.19737788,128.53,128.46,7.7847]
[1741553710880,14.19737788,128.5,128.46,7.7847]
[1741553711180,21.98007788,128.5,128.46,7.7847]
[1741553711381,14.19737788,128.5,128.47,7.7844]
[1741553711679,14.19737788,128.53,128.47,14.19737788]
[1741553712078,0.05188643,128.5,128.47,14.25131782]
[1741553712282,0.05188643,128.5,128.47,14.27031763]
[1741553712675,0.05188643,128.5,128.47,0.05393994]
[1741553714075,0.05188643,128.5,128.48,7.7839]
[1741553714277,0.05188643,128.5,128.47,0.05393994]
[1741553714573,0.05188643,128.5,128.47,7.83833994]
[1741553714774,0.05188643,128.5,128.47,0.05393994]
[1741553715172,0.05188643,128.5,128.48,7.7835]
[1741553715683,0.05188643,128.5,128.47,0.05393994]
[1741553715880,0.05188643,128.5,128.47,7.83823994]
[1741553716288,0.05188643,128.5,128.47,0.05393994]
[1741553718187,20.98278545,128.5,128.47,0.05393994]
[1741553718490,20.93089902,128.48,128.4,7.7886]
[1741553718683,30.88,128.47,128.39,20.93089902]
[1741553718886,30.88,128.47,128.41,20.93089902]
[1741553719086,20.93089902,128.5,128.42,4.0641]
[1741553719087,7.7834,128.49,128.42,4.0641]
[1741553719387,51.81089902,128.53,128.45,20.93089902]
[1741553719584,0.05215174,128.47,128.46,8.4312]
[1741553719783,30.88,128.53,128.46,8.4312]
[1741553719978,30.88,128.53,128.47,20.93089902]
[1741553720287,30.88,128.53,128.46,8.4312]
[1741553720588,59.59209902,128.53,128.46,8.4312]
[1741553720788,51.81089902,128.53,128.46,8.4312]
[1741553720991,0.05335981,128.51,128.48,0.05906456]
[1741553721685,20.93089902,128.49,128.48,0.05906456]
[1741553721885,51.81089902,128.49,128.41,3.9761]
[1741553722187,7.7861,128.45,128.41,3.9761]
[1741553722581,20.93089902,128.48,128.41,3.9761]
[1741553722981,0.05581453,128.46,128.43,0.0581096]
[1741553723183,30.88,128.45,128.43,0.0581096]
[1741553723587,7.7885,128.41,128.37,4.2924]
[1741553724095,20.93089902,128.42,128.36,256.7]
[1741553724287,7.7891,128.4,128.36,256.7]
[1741553724791,0.05473133,128.39,128.37,0.05601553]
[1741553725187,7.7899,128.38,128.37,0.05601553]
[1741553725385,20.93089902,128.38,128.3,4.1996]
[1741553725585,30.88,128.37,128.3,4.1996]
[1741553725888,7.7922,128.35,128.3,4.1996]
[1741553726183,7.7941,128.32,128.29,256.76]
[1741553726390,7.7941,128.32,128.31,0.05765821]
[1741553726790,30.88,128.33,128.31,0.05765821]
[1741553726995,20.93089902,128.32,128.31,0.05765821]
[1741553727485,30.93278832,128.33,128.31,0.05765821]
[1741553729390,0.05278832,128.33,128.31,0.05765821]
[1741553731697,0.05278832,128.33,128.32,7.7936]
[1741553731997,0.05278832,128.33,128.31,0.05765821]
[1741553732395,0.05278832,128.33,128.32,7.7936]
[1741553732789,0.05278832,128.33,128.31,0.05765821]
[1741553733000,0.05278832,128.33,128.31,7.85165821]
[1741553733296,0.05278832,128.33,128.31,0.05765821]
[1741553733487,0.05278832,128.33,128.32,7.7936]
[1741553738103,30.9,128.37,128.31,0.05765821]
[1741553738299,30.9,128.37,128.34,7.7923]
[1741553738693,30.9,128.37,128.33,7.7928]
[1741553738904,30.9,128.37,128.27,32.80257816]
[1741553739105,30.9,128.37,128.28,30.9]
[1741553739407,0.0584495,128.33,128.31,7.85244101]
[1741553739903,0.0584495,128.33,128.32,7.7936]
[1741553740904,30.9,128.37,128.35,7.7913]
[1741553741205,30.9,128.4,128.32,7.966]
[1741553741702,38.6891,128.4,128.32,7.966]
[1741553742000,34.86827816,128.42,128.35,0.05380687]
[1741553742001,0.05972968,128.37,128.35,0.05380687]
[1741553742305,7.7879,128.42,128.37,7.7901]
[1741553742493,7.7879,128.42,128.33,32.80257816]
[1741553742693,0.05382743,128.41,128.38,0.05920709]
[1741553742898,7.84222743,128.41,128.38,0.05920709]
[1741553745704,7.84222743,128.41,128.38,7.84910709]
[1741553747801,0.05382743,128.41,128.38,0.05920709]
[1741553748304,0.05382743,128.41,128.38,7.84880709]
[1741553748501,0.05382743,128.41,128.38,0.05920709]
[1741553749805,0.05382743,128.41,128.39,7.789]
[1741553751009,0.05382743,128.41,128.38,7.84890709]
[1741553755012,0.05382743,128.41,128.38,0.05920709]
[1741553756313,0.05382743,128.41,128.39,7.7893]
[1741553756714,109.53065363,128.45,128.39,20.96347798]
[1741553756915,109.53065363,128.45,128.4,7.882]
[1741553757414,117.31665363,128.45,128.41,7.7881]
[1741553757608,117.31665363,128.45,128.4,7.882]
[1741553757813,0.05036432,128.44,128.42,0.05827839]
[1741553758018,7.7836,128.49,128.44,7.7858]
[1741553758314,51.84347798,128.5,128.44,7.7858]
[1741553758815,7.7836,128.49,128.44,7.7858]
[1741553759212,0.05406298,128.48,128.45,0.05133397]
[1741553760217,7.83796298,128.48,128.45,0.05133397]
[1741553761110,21.01754096,128.48,128.45,0.05133397]
[1741553761512,0.05406298,128.48,128.45,0.05133397]
[1741553761709,7.7849,128.47,128.45,0.05133397]
[1741553761913,0.05406298,128.48,128.45,0.05133397]
[1741553762513,7.7849,128.47,128.45,0.05133397]
[1741553763313,7.83816298,128.48,128.45,0.05133397]
[1741553763509,0.05406298,128.48,128.45,0.05133397]
[1741553764018,7.7851,128.46,128.45,0.05133397]
[1741553764424,21.01754096,128.48,128.45,0.05133397]
[1741553764722,7.7851,128.46,128.45,0.05133397]
[1741553765224,21.01754096,128.48,128.45,0.05133397]
[1741553765518,7.7848,128.47,128.45,0.05133397]
[1741553765718,20.96347798,128.46,128.45,3.397e-05]
[1741553765916,28.74857798,128.46,128.45,3.397e-05]
[1741553766315,28.74857798,128.46,128.38,3.9819]
[1741553766316,51.82347798,128.46,128.38,3.9819]
[1741553766517,7.7885,128.41,128.38,3.9819]
[1741553767113,20.96347798,128.44,128.38,3.9819]
[1741553767318,51.82347798,128.46,128.38,3.9819]
[1741553767624,0.05657077,128.42,128.4,0.05944198]
[1741553767824,0.05657077,128.42,128.4,7.84794198]
[1741553768020,20.96347798,128.48,128.4,30.89944198]
[1741553768226,51.80347798,128.5,128.41,24.95317798]
[1741553769128,0.04935471,128.47,128.44,0.0540316]
[1741553770128,7.83415471,128.47,128.44,0.0540316]
[1741553770832,0.04935471,128.47,128.44,7.8400316]
[1741553771525,0.04935471,128.47,128.45,7.7857]
[1741553771728,0.04935471,128.47,128.44,0.0540316]
[1741553771929,30.84,128.52,128.44,34.9275316]
[1741553772235,43.26680214,128.54,128.47,20.96347798]
[1741553772426,51.80347798,128.57,128.48,34.819]
[1741553772626,7.7792,128.56,128.5,7.7822]
[1741553772934,51.80347798,128.57,128.48,34.819]
[1741553773123,7.83861116,128.54,128.52,0.0593464]
[1741553773327,0.05791116,128.54,128.52,0.0593464]
[1741553773727,7.7809,128.53,128.52,0.0593464]
[1741553774527,0.05791116,128.54,128.52,0.0593464]
[1741553775534,7.7809,128.53,128.52,0.0593464]
[1741553776130,0.05791116,128.54,128.52,0.0593464]
[1741553777531,7.83841116,128.54,128.52,0.0593464]
[1741553777831,0.05791116,128.54,128.52,7.8404464]
[1741553779535,0.05791116,128.54,128.52,0.0593464]
[1741553779932,7.7809,128.53,128.52,0.0593464]
[1741553780327,51.78347798,128.53,128.43,24.91227798]
[1741553780530,20.96347798,128.5,128.43,7.965]
[1741553780837,20.96347798,128.46,128.41,3.9511]
[1741553781135,20.96347798,128.48,128.41,3.9511]
[1741553781636,0.04970312,128.46,128.44,0.05242652]
[1741553784939,7.7857,128.45,128.44,0.05242652]
[1741553785934,7.83510312,128.46,128.44,0.05242652]
[1741553786240,0.04970312,128.46,128.44,0.05242652]
[1741553787044,7.83510312,128.46,128.44,0.05242652]
[1741553787843,0.04970312,128.46,128.44,0.05242652]
[1741553788644,7.83500312,128.46,128.44,0.05242652]
[1741553789546,0.04970312,128.46,128.44,0.05242652]
[1741553791141,7.7857,128.45,128.44,0.05242652]
[1741553791339,0.04970312,128.46,128.44,0.05242652]
[1741553793548,0.04970312,128.46,128.44,7.83872652]
[1741553793743,0.04970312,128.46,128.44,0.05242652]
[1741553795851,7.7857,128.45,128.44,0.05242652]
[1741553798148,21.0131811,128.46,128.37,20.96347798]
[1741553798345,20.96347798,128.44,128.36,256.84]
[1741553798739,7.7897,128.39,128.36,256.84]
[1741553799349,7.8427665,128.39,128.36,256.89246056]
[1741553799945,0.0530665,128.39,128.36,256.89246056]
[1741553800948,0.0530665,128.39,128.36,264.68346056]
[1741553801143,0.0530665,128.39,128.36,256.89246056]
[1741553801852,0.0530665,128.39,128.36,264.68336056]
[1741553803455,0.0530665,128.39,128.36,256.89246056]
[1741553806360,0.0530665,128.39,128.38,7.7899]
[1741553807349,0.0530665,128.39,128.36,256.89246056]
[1741553807960,0.0530665,128.39,128.38,7.7899]
[1741553810262,0.0530665,128.39,128.37,7.7905]
[1741553810765,0.0530665,128.39,128.36,264.68346056]
[1741553811166,0.0530665,128.39,128.36,256.89246056]
[1741553811365,0.0530665,128.39,128.37,7.79]
[1741553811662,0.0530665,128.39,128.36,0.05246056]
[1741553811966,0.0530665,128.39,128.38,7.7899]
[1741553812462,0.0530665,128.39,128.36,0.05246056]
[1741553813166,7.7905,128.38,128.36,0.05246056]
[1741553813367,0.0530665,128.39,128.36,0.05246056]
[1741553813570,7.8426665,128.39,128.36,0.05246056]
[1741553814375,0.0530665,128.39,128.36,0.05246056]
[1741553816366,7.79,128.38,128.36,0.05246056]
[1741553816971,0.0530665,128.39,128.36,0.05246056]
[1741553818064,30.8530665,128.39,128.36,0.05246056]
[1741553818270,7.7906,128.37,128.36,0.05246056]
[1741553819361,7.7906,128.37,128.36,6.056e-05]
[1741553821763,30.8530665,128.39,128.36,6.056e-05]
[1741553821969,7.7903,128.38,128.36,6.056e-05]
[1741553822170,30.8530665,128.39,128.36,6.056e-05]
[1741553822474,7.7906,128.37,128.36,6.056e-05]
[1741553828079,30.8530665,128.39,128.36,6.056e-05]
[1741553828975,0.0530665,128.39,128.36,6.056e-05]
[1741553829479,0.0530665,128.39,128.37,7.7903]
[1741553829777,0.0530665,128.39,128.36,6.056e-05]
[1741553830173,0.0530665,128.39,128.37,7.7901]
[1741553830369,0.0530665,128.39,128.36,6.056e-05]
[1741553831878,0.0530665,128.39,128.38,7.7899]
[1741553835481,51.76347798,128.44,128.36,20.96353854]
[1741553835778,7.7873,128.43,128.39,7.7889]
[1741553835978,20.96347798,128.46,128.38,20.96347798]
[1741553836179,51.74347798,128.46,128.38,20.96347798]
[1741553836387,20.96347798,128.46,128.38,20.96347798]
[1741553836581,51.74347798,128.46,128.38,20.96347798]
[1741553836885,0.05352679,128.43,128.41,0.05553886]
[1741553837277,7.84092679,128.43,128.41,0.05553886]
[1741553838181,7.7875,128.42,128.41,0.05553886]
[1741553840180,7.84072679,128.43,128.41,0.05553886]
[1741553840370,0.05352679,128.43,128.41,0.05553886]
[1741553840777,7.7875,128.42,128.41,0.05553886]
[1741553844590,28.75097798,128.42,128.41,0.05553886]
[1741553844782,7.7903,128.38,128.35,8.0264]
[1741553844983,51.72347798,128.42,128.35,15.8179]
[1741553845386,7.7897,128.39,128.35,15.8179]
[1741553845984,0.05453826,128.38,128.36,0.0542234]
[1741553846994,0.05453826,128.38,128.37,7.7906]
[1741553847186,20.96347798,128.44,128.36,21.01770138]
[1741553847379,20.96347798,128.44,128.36,20.96347798]
[1741553847784,20.96347798,128.44,128.35,8.0264]
[1741553848185,7.84092748,128.41,128.38,0.05197004]
[1741553848493,0.05242748,128.41,128.38,0.05197004]
[1741553848888,0.05242748,128.41,128.4,7.7887]
[1741553850385,0.05242748,128.41,128.38,0.05197004]
[1741553850990,0.05242748,128.41,128.4,7.7887]
[1741553854397,132.12096514,128.49,128.44,7.786]
[1741553854689,125.39079071,128.49,128.43,14.22517522]
[1741553854889,7.7843,128.48,128.44,7.786]
[1741553855282,125.39079071,128.49,128.43,14.22517522]
[1741553855493,7.7857,128.46,128.45,0.05893672]
[1741553855690,0.05885252,128.47,128.45,0.05893672]
[1741553855891,0.05885252,128.47,128.45,14.28411194]
[1741553856394,14.22517522,128.5,128.45,14.28411194]
[1741553856589,10.81670053,128.51,128.47,14.22517522]
[1741553857591,0.05250844,128.5,128.48,0.05282353]
[1741553857794,10.81670053,128.51,128.49,14.22517522]
[1741553858297,10.81670053,128.51,128.48,45.02816468]
[1741553858486,14.21534115,128.53,128.48,45.02816468]
[1741553858690,51.68933898,128.55,128.48,30.81282353]
[1741553858994,0.02025131,128.52,128.48,30.81282353]
[1741553859395,7.80175131,128.52,128.48,30.81282353]
[1741553859693,0.02025131,128.52,128.48,30.81282353]
[1741553861202,7.80175131,128.52,128.48,30.81282353]
[1741553861497,0.02025131,128.52,128.48,30.81282353]
[1741553861698,7.7833,128.49,128.48,0.05282353]
[1741553861891,28.71263898,128.49,128.48,2.353e-05]
[1741553862096,24.82933898,128.49,128.38,29.10223898]
[1741553862293,226.5891,128.51,128.38,8.1729]
[1741553862294,20.92933898,128.46,128.38,8.1729]
[1741553862494,20.92933898,128.44,128.38,4.0088]
[1741553862699,20.92933898,128.42,128.37,18.63279438]
[1741553862901,7.7893,128.4,128.37,18.63279438]
[1741553863100,20.92933898,128.42,128.37,18.63279438]
[1741553863297,0.05518408,128.4,128.37,18.68487745]
[1741553863899,0.05518408,128.4,128.37,0.05208307]
[1741553864204,7.7894,128.39,128.37,0.05208307]
[1741553864501,0.05518408,128.4,128.37,0.05208307]
[1741553868500,0.05518408,128.4,128.38,7.7899]
[1741553868901,7.7871,128.43,128.38,7.7899]
[1741553869101,7.7871,128.43,128.37,0.05208307]
[1741553869302,7.7875,128.42,128.37,0.05208307]
[1741553869501,20.92933898,128.46,128.36,20.92933898]
[1741553869700,20.92933898,128.46,128.38,7.7895]
[1741553869905,7.7873,128.43,128.38,7.7895]
[1741553870094,7.7873,128.43,128.41,0.05428891]
[1741553870706,7.7865,128.44,128.41,0.05428891]
[1741553871012,20.92933898,128.46,128.41,0.05428891]
[1741553871610,7.7875,128.42,128.41,0.05428891]
[1741553873707,7.7872,128.43,128.41,0.05428891]
[1741553874009,20.92933898,128.46,128.41,0.05428891]
[1741553874307,7.786,128.45,128.41,0.05428891]
[1741553874511,7.786,128.45,128.41,7.84228891]
[1741553875004,20.92933898,128.48,128.41,0.05428891]
[1741553875209,7.7853,128.46,128.42,7.7874]
[1741553875506,51.64933898,128.48,128.43,0.05967944]
[1741553876411,7.7856,128.46,128.43,0.05967944]
[1741553877108,7.7844,128.48,128.43,7.84617944]
[1741553877308,7.7844,128.48,128.43,0.05967944]
[1741553878411,51.64933898,128.52,128.43,0.05967944]
[1741553878612,51.64933898,128.52,128.42,51.64933898]
[1741553878812,51.64933898,128.52,128.46,7.83382434]
[1741553879109,51.64933898,128.52,128.46,0.04912434]
[1741553879608,20.92933898,128.52,128.46,0.04912434]
[1741553880110,7.5273,128.54,128.46,0.04912434]
[1741553880310,30.72,128.53,128.46,0.04912434]
[1741553880516,20.92933898,128.5,128.46,0.04912434]
[1741553880916,20.92933898,128.52,128.46,0.04912434]
[1741553881413,20.92933898,128.5,128.46,0.04912434]
[1741553881613,7.7845,128.47,128.46,0.04912434]
[1741553882615,7.787,128.43,128.4,30.72]
[1741553882814,20.92933898,128.44,128.37,4.2487]
[1741553883011,20.92933898,128.44,128.36,4.2764]
[1741553883206,7.7893,128.4,128.35,264.6315]
[1741553883407,30.72,128.41,128.33,86.53360431]
[1741553883713,0.05659842,128.38,128.36,0.05075258]
[1741553888120,51.64933898,128.44,128.36,0.05075258]
[1741553888320,30.72,128.44,128.37,20.92933898]
[1741553888515,30.72,128.47,128.39,20.92933898]
[1741553888716,38.5047,128.47,128.42,7.7871]
[1741553888924,20.92933898,128.44,128.38,8.4538]
[1741553889219,20.92933898,128.44,128.4,0.04992767]
[1741553889423,20.92933898,128.46,128.4,0.04992767]
[1741553890321,30.72,128.47,128.4,0.04992767]
[1741553890322,20.92933898,128.44,128.4,0.04992767]
[1741553891019,7.7881,128.41,128.4,0.04992767]
[1741553891418,20.92933898,128.44,128.4,0.04992767]
[1741553891622,7.7879,128.42,128.4,0.04992767]
[1741553891817,20.92933898,128.44,128.4,0.04992767]
[1741553892224,20.9598902,128.45,128.4,0.04992767]
[1741553892424,7.7872,128.43,128.4,0.04992767]
[1741553893123,30.72,128.47,128.4,0.04992767]
[1741553893520,30.72,128.47,128.41,7.7879]
[1741553893720,30.72,128.47,128.39,34.7624]
[1741553893922,7.7863,128.44,128.43,0.05248329]
[1741553894223,7.7863,128.44,128.43,8.329e-05]
[1741553897121,36.60102869,128.44,128.37,256.92]
[1741553897329,7.7899,128.38,128.37,256.92]
[1741553897536,32.2651,128.43,128.34,4.2343]
[1741553897828,7.7898,128.39,128.34,4.2343]
[1741553898031,7.7898,128.39,128.36,7.791]
[1741553898526,7.84869131,128.39,128.36,7.84150984]
[1741553899029,7.79,128.38,128.36,0.05050984]
[1741553899230,0.05889131,128.39,128.36,0.05050984]
[1741553900627,0.05889131,128.39,128.36,7.84140984]
[1741553900929,0.05889131,128.39,128.36,0.05050984]
[1741553901330,0.05889131,128.39,128.37,7.7902]
[1741553902524,0.05889131,128.39,128.36,38.56130984]
[1741553902831,0.05889131,128.39,128.36,30.77050984]
[1741553903024,7.84859131,128.39,128.36,30.77050984]
[1741553903423,7.79,128.38,128.36,0.05050984]
[1741553903624,0.05889131,128.39,128.36,0.05050984]
[1741553904026,7.84849131,128.39,128.36,0.05050984]
[1741553904529,0.05889131,128.39,128.36,7.84150984]
[1741553904730,0.05889131,128.39,128.36,0.05050984]
[1741553905128,0.05889131,128.39,128.37,7.7901]
[1741553905830,0.05889131,128.39,128.38,7.7899]
[1741553906224,0.05889131,128.39,128.36,0.05050984]
[1741553906225,7.7874,128.43,128.39,7.789]
[1741553906428,30.72,128.46,128.37,30.72]
[1741553907023,7.7879,128.42,128.38,7.7896]
[1741553907220,7.7879,128.42,128.39,0.05142746]
[1741553908434,7.7867,128.44,128.4,7.7887]
[1741553908823,7.7867,128.44,128.41,0.05961415]
[1741553909729,30.72,128.46,128.41,0.05961415]
[1741553910332,32.74172869,128.44,128.35,11.8189]
[1741553910524,32.74172869,128.44,128.35,4.0274]
[1741553910726,32.74172869,128.44,128.37,7.7904]
[1741553911239,7.7891,128.4,128.35,4.0274]
[1741553911423,32.74172869,128.44,128.39,0.05743149]
[1741553911424,0.04920789,128.42,128.39,0.05743149]
[1741553911623,30.7,128.42,128.35,4.0274]
[1741553911830,7.7885,128.41,128.39,0.05983976]
[1741553912126,30.7544288,128.42,128.39,0.05983976]